[Event "Titled Tuesday Blitz May 9 Early 2023"]
[White "Demchenko, Anton"]
[Black "Wieczorek, Oskar"]
[WhiteFideId "4160258"]
[BlackFideId "1133950"]
[WhiteElo "2545"]
[BlackElo "2418"]
[Result "1-0"]
[Round "07"]
[TimeControl "180+2"]
[Date "2023.05.09"]
[WhiteClock "0:00:15"]
[BlackClock "0:00:14"]

1. e4 {[%clk 0:03:00]}  c5 {[%clk 0:02:56]} 2. Nf3 {[%clk 0:03:00]}  e6 {[%clk 0:02:56]} 3. d4 {[%clk 0:03:00]}  cxd4 {[%clk 0:02:57]} 4. Nxd4 {[%clk 0:03:01]}  Nf6 {[%clk 0:02:58]} 5. Bd3 {[%clk 0:02:56]}  Nc6 {[%clk 0:02:58]} 6. Nxc6 {[%clk 0:02:55]}  bxc6 {[%clk 0:02:58]} 7. Bf4 {[%clk 0:02:48]}  d6 {[%clk 0:02:55]} 8. O-O {[%clk 0:02:44]}  e5 {[%clk 0:02:55]} 9. Bg5 {[%clk 0:02:38]}  Be7 {[%clk 0:02:55]} 10. c4 {[%clk 0:02:38]}  Be6 {[%clk 0:02:53]} 11. Nc3 {[%clk 0:02:29]}  O-O {[%clk 0:02:53]} 12. Qc2 {[%clk 0:02:23]}  Nd7 {[%clk 0:02:53]} 13. Bxe7 {[%clk 0:02:10]}  Qxe7 {[%clk 0:02:54]} 14. b4 {[%clk 0:02:10]}  Rfb8 {[%clk 0:02:41]} 15. Rfb1 {[%clk 0:02:00]}  a6 {[%clk 0:02:23]} 16. a4 {[%clk 0:01:58]}  Nb6 {[%clk 0:01:48]} 17. Qe2 {[%clk 0:01:54]}  c5 {[%clk 0:01:43]} 18. b5 {[%clk 0:01:39]}  a5 {[%clk 0:01:43]} 19. Nd1 {[%clk 0:01:36]}  g6 {[%clk 0:01:25]} 20. Ne3 {[%clk 0:01:37]}  Qg5 {[%clk 0:01:25]} 21. Qc2 {[%clk 0:01:30]}  h5 {[%clk 0:01:24]} 22. Rd1 {[%clk 0:01:28]}  h4 {[%clk 0:01:22]} 23. Bf1 {[%clk 0:01:21]}  Rd8 {[%clk 0:01:22]} 24. Ra3 {[%clk 0:01:09]}  Rd7 {[%clk 0:01:19]} 25. Rad3 {[%clk 0:01:05]}  Qe7 {[%clk 0:00:51]} 26. h3 {[%clk 0:01:05]}  Kg7 {[%clk 0:00:51]} 27. Be2 {[%clk 0:01:01]}  f5 {[%clk 0:00:47]} 28. Bf3 {[%clk 0:01:01]}  f4 {[%clk 0:00:44]} 29. Nd5 {[%clk 0:00:31]}  Bxd5 {[%clk 0:00:45]} 30. Rxd5 {[%clk 0:00:31]}  Nxd5 {[%clk 0:00:24]} 31. Rxd5 {[%clk 0:00:32]}  Rb7 {[%clk 0:00:20]} 32. Qd2 {[%clk 0:00:32]}  Rb6 {[%clk 0:00:20]} 33. Kf1 {[%clk 0:00:33]}  Qg5 {[%clk 0:00:20]} 34. Ke2 {[%clk 0:00:33]}  Qf6 {[%clk 0:00:20]} 35. Kd3 {[%clk 0:00:34]}  Qg5 {[%clk 0:00:21]} 36. Kc3 {[%clk 0:00:35]}  Qf6 {[%clk 0:00:21]} 37. Kb3 {[%clk 0:00:35]}  Qe7 {[%clk 0:00:20]} 38. Bg4 {[%clk 0:00:34]}  Qf6 {[%clk 0:00:19]} 39. Qc3 {[%clk 0:00:30]}  Qe7 {[%clk 0:00:19]} 40. Rd3 {[%clk 0:00:30]}  Ra7 {[%clk 0:00:18]} 41. Rf3 {[%clk 0:00:30]}  Qg5 {[%clk 0:00:11]} 42. Ka3 {[%clk 0:00:28]}  Ra8 {[%clk 0:00:09]} 43. Qd2 {[%clk 0:00:27]}  Kh6 {[%clk 0:00:09]} 44. Kb3 {[%clk 0:00:27]}  Ra7 {[%clk 0:00:09]} 45. Qd1 {[%clk 0:00:23]}  Ra8 {[%clk 0:00:08]} 46. Qf1 {[%clk 0:00:22]}  Ra7 {[%clk 0:00:08]} 47. Be6 {[%clk 0:00:21]}  Re7 {[%clk 0:00:07]} 48. Bd5 {[%clk 0:00:22]}  Kg7 {[%clk 0:00:05]} 49. Kc2 {[%clk 0:00:17]}  Re8 {[%clk 0:00:03]} 50. Qg1 {[%clk 0:00:16]}  Qf6 {[%clk 0:00:03]} 51. Rc3 {[%clk 0:00:13]}  Rh8 {[%clk 0:00:03]} 52. Qd1 {[%clk 0:00:13]}  Qg5 {[%clk 0:00:03]} 53. Qf3 {[%clk 0:00:13]}  Rf8 {[%clk 0:00:03]} 54. Rd3 {[%clk 0:00:13]}  Rf6 {[%clk 0:00:03]} 55. Bc6 {[%clk 0:00:14]}  Kf7 {[%clk 0:00:02]} 56. Rd2 {[%clk 0:00:13]}  Ke7 {[%clk 0:00:03]} 57. Rd1 {[%clk 0:00:11]}  Rf8 {[%clk 0:00:03]} 58. Kd3 {[%clk 0:00:09]}  Rxc6 {[%clk 0:00:02]} 59. bxc6 {[%clk 0:00:09]}  Rb8 {[%clk 0:00:03]} 60. Ke2 {[%clk 0:00:04]}  Rb6 {[%clk 0:00:03]} 61. Kf1 {[%clk 0:00:03]}  Rxc6 {[%clk 0:00:03]} 62. Qc3 {[%clk 0:00:03]}  Rc7 {[%clk 0:00:02]} 63. Qxa5 {[%clk 0:00:04]}  Rd7 {[%clk 0:00:03]} 64. Qc3 {[%clk 0:00:04]}  Qf6 {[%clk 0:00:03]} 65. a5 {[%clk 0:00:04]}  Qe6 {[%clk 0:00:04]} 66. Ra1 {[%clk 0:00:04]}  Ra7 {[%clk 0:00:04]} 67. a6 {[%clk 0:00:05]}  Qd7 {[%clk 0:00:04]} 68. Qa5 {[%clk 0:00:05]}  Qc6 {[%clk 0:00:05]} 69. f3 {[%clk 0:00:04]}  g5 {[%clk 0:00:05]} 70. Kg1 {[%clk 0:00:04]}  Kd7 {[%clk 0:00:04]} 71. Kh2 {[%clk 0:00:04]}  Qc7 {[%clk 0:00:05]} 72. Qb5+ {[%clk 0:00:04]}  Qc6 {[%clk 0:00:05]} 73. Qa5 {[%clk 0:00:03]}  Qc7 {[%clk 0:00:06]} 74. Qa3 {[%clk 0:00:04]}  Qc6 {[%clk 0:00:06]} 75. Qa2 {[%clk 0:00:04]}  Qb6 {[%clk 0:00:06]} 76. Kh1 {[%clk 0:00:04]}  Qc6 {[%clk 0:00:06]} 77. Kg1 {[%clk 0:00:05]}  Qb6 {[%clk 0:00:07]} 78. Qa4+ {[%clk 0:00:05]}  Qc6 {[%clk 0:00:07]} 79. Qa5 {[%clk 0:00:05]}  Qc7 {[%clk 0:00:08]} 80. Qb5+ {[%clk 0:00:05]}  Qc6 {[%clk 0:00:08]} 81. Kf2 {[%clk 0:00:05]}  Kc7 {[%clk 0:00:06]} 82. Ke2 {[%clk 0:00:05]}  Qxb5 {[%clk 0:00:05]} 83. cxb5 {[%clk 0:00:05]}  Kb6 {[%clk 0:00:05]} 84. Rb1 {[%clk 0:00:04]}  c4 {[%clk 0:00:05]} 85. Kd2 {[%clk 0:00:04]}  Rc7 {[%clk 0:00:06]} 86. Kc3 {[%clk 0:00:04]}  Rc5 {[%clk 0:00:06]} 87. Ra1 {[%clk 0:00:05]}  Rc7 {[%clk 0:00:03]} 88. a7 {[%clk 0:00:05]}  Rxa7 {[%clk 0:00:01]} 89. Rxa7 {[%clk 0:00:06]}  Kxa7 {[%clk 0:00:02]} 90. Kxc4 {[%clk 0:00:07]}  Kb6 {[%clk 0:00:03]} 91. Kd5 {[%clk 0:00:07]}  Kxb5 {[%clk 0:00:04]} 92. Kxd6 {[%clk 0:00:08]}  Kc4 {[%clk 0:00:05]} 93. Kxe5 {[%clk 0:00:09]}  Kd3 {[%clk 0:00:06]} 94. Kf5 {[%clk 0:00:09]}  Ke3 {[%clk 0:00:07]} 95. Kxg5 {[%clk 0:00:10]}  Kf2 {[%clk 0:00:07]} 96. Kxh4 {[%clk 0:00:09]}  Kxg2 {[%clk 0:00:08]} 97. Kg4 {[%clk 0:00:10]}  Kf2 {[%clk 0:00:09]} 98. Kxf4 {[%clk 0:00:10]}  Kg2 {[%clk 0:00:09]} 99. e5 {[%clk 0:00:11]}  Kxh3 {[%clk 0:00:10]} 100. e6 {[%clk 0:00:12]}  Kg2 {[%clk 0:00:10]} 101. e7 {[%clk 0:00:13]}  Kf2 {[%clk 0:00:11]} 102. e8=Q {[%clk 0:00:14]}  Kf1 {[%clk 0:00:11]} 103. Qe3 {[%clk 0:00:13]}  Kg2 {[%clk 0:00:12]} 104. Ke4 {[%clk 0:00:12]}  Kf1 {[%clk 0:00:12]} 105. Qd2 {[%clk 0:00:13]}  Kg1 {[%clk 0:00:12]} 106. f4 {[%clk 0:00:13]}  Kh1 {[%clk 0:00:13]} 107. Kf3 {[%clk 0:00:14]}  Kg1 {[%clk 0:00:14]} 108. Qg2# {[%clk 0:00:15]} 1-0


[Site "https://www.chess.com"]

[Event "Titled Tuesday Blitz May 9 Early 2023"]
[White "Veiga, Jose Francisco R P Neves"]
[Black "Gharibyan, Mamikon"]
[WhiteFideId "1930087"]
[BlackFideId "13308300"]
[WhiteElo "2320"]
[BlackElo "2445"]
[Result "0-1"]
[Round "07"]
[TimeControl "180+2"]
[Date "2023.05.09"]
[WhiteClock "0:00:00"]
[BlackClock "0:00:05"]

1. e4 {[%clk 0:02:51]}  d5 {[%clk 0:02:31]} 2. exd5 {[%clk 0:02:50]}  Qxd5 {[%clk 0:02:31]} 3. Nc3 {[%clk 0:02:50]}  Qd8 {[%clk 0:02:27]} 4. Bc4 {[%clk 0:02:48]}  Nf6 {[%clk 0:02:27]} 5. d4 {[%clk 0:02:45]}  Bg4 {[%clk 0:02:24]} 6. Nf3 {[%clk 0:02:43]}  e6 {[%clk 0:02:13]} 7. h3 {[%clk 0:02:42]}  Bxf3 {[%clk 0:02:10]} 8. Qxf3 {[%clk 0:02:43]}  c6 {[%clk 0:02:09]} 9. Be3 {[%clk 0:02:42]}  Be7 {[%clk 0:02:07]} 10. O-O-O {[%clk 0:02:41]}  Nd5 {[%clk 0:02:04]} 11. Ne4 {[%clk 0:02:30]}  Nd7 {[%clk 0:02:00]} 12. g4 {[%clk 0:02:27]}  b5 {[%clk 0:01:55]} 13. Bb3 {[%clk 0:02:26]}  a5 {[%clk 0:01:54]} 14. c4 {[%clk 0:02:14]}  bxc4 {[%clk 0:01:53]} 15. Bxc4 {[%clk 0:02:15]}  a4 {[%clk 0:01:52]} 16. a3 {[%clk 0:02:09]}  Rb8 {[%clk 0:01:48]} 17. Bf4 {[%clk 0:02:03]}  Nxf4 {[%clk 0:01:47]} 18. Qxf4 {[%clk 0:02:04]}  Nb6 {[%clk 0:01:45]} 19. Ba2 {[%clk 0:02:00]}  Nd5 {[%clk 0:01:43]} 20. Qf3 {[%clk 0:01:56]}  O-O {[%clk 0:01:35]} 21. Kb1 {[%clk 0:01:50]}  Rb6 {[%clk 0:01:25]} 22. Ka1 {[%clk 0:01:48]}  Qc7 {[%clk 0:01:24]} 23. Rd2 {[%clk 0:01:47]}  Rfb8 {[%clk 0:01:24]} 24. Rc1 {[%clk 0:01:46]}  Qb7 {[%clk 0:01:23]} 25. Rcc2 {[%clk 0:01:39]}  Qa6 {[%clk 0:01:22]} 26. Qd3 {[%clk 0:01:35]}  Qa5 {[%clk 0:01:13]} 27. Nc5 {[%clk 0:01:03]}  Qa7 {[%clk 0:00:47]} 28. Qc4 {[%clk 0:00:47]}  Bxc5 {[%clk 0:00:32]} 29. Qxc5 {[%clk 0:00:47]}  g6 {[%clk 0:00:25]} 30. h4 {[%clk 0:00:47]}  Qc7 {[%clk 0:00:24]} 31. Bxd5 {[%clk 0:00:44]}  exd5 {[%clk 0:00:23]} 32. Qc3 {[%clk 0:00:23]}  Qh2 {[%clk 0:00:18]} 33. Qg3 {[%clk 0:00:23]}  Qh1+ {[%clk 0:00:17]} 34. Ka2 {[%clk 0:00:23]}  Qe4 {[%clk 0:00:12]} 35. Rxc6 {[%clk 0:00:14]}  Rb3 {[%clk 0:00:09]} 36. Qe5 {[%clk 0:00:13]}  Qh1 {[%clk 0:00:05]} 37. Rc5 {[%clk 0:00:00]}  Rxa3+ {[%clk 0:00:05]} 0-1


[Site "https://www.chess.com"]

[Event "Titled Tuesday Blitz May 9 Early 2023"]
[White "Mekhitarian, Krikor Sevag"]
[Black "Antal, Gergely"]
[WhiteFideId "2107660"]
[BlackFideId "717312"]
[WhiteElo "2604"]
[BlackElo "2471"]
[Result "1-0"]
[Round "07"]
[TimeControl "180+2"]
[Date "2023.05.09"]
[WhiteClock "0:00:08"]
[BlackClock "0:00:00"]

1. Nf3 {[%clk 0:03:00]}  d6 {[%clk 0:02:59]} 2. d4 {[%clk 0:03:00]}  f5 {[%clk 0:02:59]} 3. g3 {[%clk 0:02:47]}  Nf6 {[%clk 0:02:59]} 4. Bg2 {[%clk 0:02:47]}  g6 {[%clk 0:02:59]} 5. b3 {[%clk 0:02:45]}  Bg7 {[%clk 0:02:59]} 6. Bb2 {[%clk 0:02:46]}  O-O {[%clk 0:03:00]} 7. O-O {[%clk 0:02:46]}  a5 {[%clk 0:03:01]} 8. a4 {[%clk 0:02:40]}  c6 {[%clk 0:03:01]} 9. Nbd2 {[%clk 0:02:34]}  Na6 {[%clk 0:02:58]} 10. Re1 {[%clk 0:02:31]}  Ne4 {[%clk 0:02:54]} 11. e3 {[%clk 0:02:30]}  Bd7 {[%clk 0:02:27]} 12. c3 {[%clk 0:02:07]}  Qb6 {[%clk 0:02:07]} 13. Qc2 {[%clk 0:02:04]}  Nxd2 {[%clk 0:02:01]} 14. Nxd2 {[%clk 0:02:02]}  d5 {[%clk 0:02:01]} 15. Ba3 {[%clk 0:02:00]}  Rfe8 {[%clk 0:01:59]} 16. Nf3 {[%clk 0:01:55]}  Rac8 {[%clk 0:01:39]} 17. Ne5 {[%clk 0:01:53]}  Bxe5 {[%clk 0:01:38]} 18. dxe5 {[%clk 0:01:54]}  Nc5 {[%clk 0:01:05]} 19. Rab1 {[%clk 0:01:48]}  Ne4 {[%clk 0:00:58]} 20. b4 {[%clk 0:01:20]}  axb4 {[%clk 0:00:55]} 21. cxb4 {[%clk 0:01:19]}  Qc7 {[%clk 0:00:30]} 22. Bb2 {[%clk 0:01:13]}  Ng5 {[%clk 0:00:30]} 23. Bc3 {[%clk 0:01:09]}  Ne6 {[%clk 0:00:29]} 24. h3 {[%clk 0:01:04]}  Ra8 {[%clk 0:00:27]} 25. Ra1 {[%clk 0:01:03]}  Ra7 {[%clk 0:00:16]} 26. Qb3 {[%clk 0:01:02]}  Rea8 {[%clk 0:00:15]} 27. Rec1 {[%clk 0:01:03]}  Qd8 {[%clk 0:00:15]} 28. Bb2 {[%clk 0:01:01]}  Be8 {[%clk 0:00:15]} 29. Rd1 {[%clk 0:01:00]}  Bf7 {[%clk 0:00:15]} 30. Qc2 {[%clk 0:00:56]}  Qb6 {[%clk 0:00:14]} 31. Bc3 {[%clk 0:00:54]}  Ra6 {[%clk 0:00:14]} 32. Bf1 {[%clk 0:00:50]}  R6a7 {[%clk 0:00:14]} 33. Bg2 {[%clk 0:00:50]}  Ra6 {[%clk 0:00:14]} 34. Kh2 {[%clk 0:00:51]}  Qa7 {[%clk 0:00:14]} 35. a5 {[%clk 0:00:47]}  Qb8 {[%clk 0:00:14]} 36. Kg1 {[%clk 0:00:45]}  R6a7 {[%clk 0:00:12]} 37. Qe2 {[%clk 0:00:44]}  b6 {[%clk 0:00:11]} 38. g4 {[%clk 0:00:43]}  fxg4 {[%clk 0:00:09]} 39. hxg4 {[%clk 0:00:44]}  bxa5 {[%clk 0:00:09]} 40. bxa5 {[%clk 0:00:45]}  Rb7 {[%clk 0:00:09]} 41. f4 {[%clk 0:00:44]}  Rb3 {[%clk 0:00:09]} 42. Qc2 {[%clk 0:00:42]}  Nc5 {[%clk 0:00:06]} 43. Bd4 {[%clk 0:00:36]}  Ne4 {[%clk 0:00:03]} 44. Rab1 {[%clk 0:00:32]}  Rxb1 {[%clk 0:00:02]} 45. Rxb1 {[%clk 0:00:33]}  Qc8 {[%clk 0:00:03]} 46. Bf3 {[%clk 0:00:29]}  Be6 {[%clk 0:00:03]} 47. g5 {[%clk 0:00:26]}  Bf5 {[%clk 0:00:03]} 48. Qa4 {[%clk 0:00:22]}  Nxg5 {[%clk 0:00:04]} 49. Rf1 {[%clk 0:00:15]}  Nxf3+ {[%clk 0:00:03]} 50. Rxf3 {[%clk 0:00:15]}  Be4 {[%clk 0:00:04]} 51. Rg3 {[%clk 0:00:16]}  Rb8 {[%clk 0:00:04]} 52. Kh2 {[%clk 0:00:05]}  Rb1 {[%clk 0:00:03]} 53. Rg1 {[%clk 0:00:05]}  Rxg1 {[%clk 0:00:02]} 54. Kxg1 {[%clk 0:00:06]}  Qg4+ {[%clk 0:00:03]} 55. Kf2 {[%clk 0:00:05]}  Qf3+ {[%clk 0:00:03]} 56. Ke1 {[%clk 0:00:06]}  Bd3 {[%clk 0:00:02]} 57. Kd2 {[%clk 0:00:06]}  Qe2+ {[%clk 0:00:03]} 58. Kc3 {[%clk 0:00:07]}  Qc2+ {[%clk 0:00:03]} 59. Qxc2 {[%clk 0:00:07]}  Bxc2 {[%clk 0:00:00]} 60. Kxc2 {[%clk 0:00:08]} 1-0


[Site "https://www.chess.com"]

[Event "Titled Tuesday Blitz May 9 Early 2023"]
[White "Domingo Nunez, Ruben"]
[Black "Visakh N R"]
[WhiteFideId "22245570"]
[BlackFideId "25012223"]
[WhiteElo "2404"]
[BlackElo "2466"]
[Result "1-0"]
[Round "07"]
[TimeControl "180+2"]
[Date "2023.05.09"]
[WhiteClock "0:00:21"]
[BlackClock "0:00:03"]

1. b3 {[%clk 0:03:00]}  g6 {[%clk 0:02:58]} 2. Bb2 {[%clk 0:03:00]}  Nf6 {[%clk 0:02:58]} 3. Nf3 {[%clk 0:03:01]}  Bg7 {[%clk 0:02:58]} 4. e3 {[%clk 0:03:01]}  O-O {[%clk 0:02:59]} 5. Be2 {[%clk 0:03:01]}  b6 {[%clk 0:02:58]} 6. O-O {[%clk 0:03:02]}  Bb7 {[%clk 0:02:58]} 7. c4 {[%clk 0:03:02]}  c5 {[%clk 0:02:58]} 8. Nc3 {[%clk 0:02:59]}  d6 {[%clk 0:02:57]} 9. d4 {[%clk 0:02:59]}  Ne4 {[%clk 0:02:58]} 10. Qc2 {[%clk 0:02:54]}  Nxc3 {[%clk 0:02:57]} 11. Bxc3 {[%clk 0:02:55]}  Nd7 {[%clk 0:02:57]} 12. d5 {[%clk 0:02:55]}  Nf6 {[%clk 0:02:57]} 13. a4 {[%clk 0:02:46]}  a5 {[%clk 0:02:56]} 14. e4 {[%clk 0:02:45]}  e5 {[%clk 0:02:56]} 15. dxe6 {[%clk 0:02:24]}  fxe6 {[%clk 0:01:44]} 16. e5 {[%clk 0:02:23]}  Ne4 {[%clk 0:01:29]} 17. Bb2 {[%clk 0:02:23]}  dxe5 {[%clk 0:01:29]} 18. Rad1 {[%clk 0:02:08]}  Qc7 {[%clk 0:01:25]} 19. Bd3 {[%clk 0:02:09]}  Rxf3 {[%clk 0:01:12]} 20. Bxe4 {[%clk 0:02:09]}  Rf7 {[%clk 0:01:09]} 21. Bxb7 {[%clk 0:02:05]}  Qxb7 {[%clk 0:01:10]} 22. Rd6 {[%clk 0:02:05]}  Re8 {[%clk 0:00:58]} 23. Qe2 {[%clk 0:01:57]}  e4 {[%clk 0:00:48]} 24. Bxg7 {[%clk 0:01:57]}  Rxg7 {[%clk 0:00:49]} 25. Rfd1 {[%clk 0:01:55]}  Rf7 {[%clk 0:00:49]} 26. Qg4 {[%clk 0:01:37]}  Ref8 {[%clk 0:00:27]} 27. Qxe6 {[%clk 0:01:25]}  Qe7 {[%clk 0:00:28]} 28. Qxe7 {[%clk 0:01:25]}  Rxe7 {[%clk 0:00:28]} 29. Re1 {[%clk 0:01:25]}  Rb8 {[%clk 0:00:23]} 30. f3 {[%clk 0:01:22]}  e3 {[%clk 0:00:22]} 31. Kf1 {[%clk 0:01:14]}  Kf7 {[%clk 0:00:22]} 32. Ke2 {[%clk 0:01:14]}  Rbb7 {[%clk 0:00:22]} 33. Red1 {[%clk 0:01:13]}  Kg7 {[%clk 0:00:21]} 34. R1d3 {[%clk 0:01:12]}  Kf7 {[%clk 0:00:20]} 35. Rc6 {[%clk 0:01:04]}  Re6 {[%clk 0:00:19]} 36. Rdd6 {[%clk 0:00:56]}  Rxd6 {[%clk 0:00:19]} 37. Rxd6 {[%clk 0:00:57]}  Ke7 {[%clk 0:00:19]} 38. Rc6 {[%clk 0:00:58]}  Kd7 {[%clk 0:00:19]} 39. Rf6 {[%clk 0:00:57]}  Ke7 {[%clk 0:00:20]} 40. Rf4 {[%clk 0:00:57]}  Rd7 {[%clk 0:00:20]} 41. Re4+ {[%clk 0:00:57]}  Kf6 {[%clk 0:00:20]} 42. Rxe3 {[%clk 0:00:58]}  Rd8 {[%clk 0:00:19]} 43. Rd3 {[%clk 0:00:58]}  Re8+ {[%clk 0:00:19]} 44. Kf2 {[%clk 0:00:59]}  Re6 {[%clk 0:00:19]} 45. Rd7 {[%clk 0:00:58]}  h5 {[%clk 0:00:20]} 46. h4 {[%clk 0:00:56]}  Ke5 {[%clk 0:00:15]} 47. Rd5+ {[%clk 0:00:53]}  Kf6 {[%clk 0:00:15]} 48. g4 {[%clk 0:00:50]}  hxg4 {[%clk 0:00:16]} 49. fxg4 {[%clk 0:00:50]}  Kf7 {[%clk 0:00:16]} 50. Rd7+ {[%clk 0:00:47]}  Ke8 {[%clk 0:00:15]} 51. Rb7 {[%clk 0:00:47]}  Rf6+ {[%clk 0:00:14]} 52. Ke3 {[%clk 0:00:46]}  Kf8 {[%clk 0:00:14]} 53. Ke4 {[%clk 0:00:45]}  Re6+ {[%clk 0:00:14]} 54. Kd5 {[%clk 0:00:41]}  Rf6 {[%clk 0:00:13]} 55. Ke5 {[%clk 0:00:42]}  Rc6 {[%clk 0:00:12]} 56. Kf4 {[%clk 0:00:41]}  Kg8 {[%clk 0:00:12]} 57. Kg5 {[%clk 0:00:41]}  Re6 {[%clk 0:00:12]} 58. Kh6 {[%clk 0:00:38]}  Kf8 {[%clk 0:00:12]} 59. g5 {[%clk 0:00:33]}  Rd6 {[%clk 0:00:11]} 60. h5 {[%clk 0:00:21]}  gxh5+ {[%clk 0:00:11]} 61. g6 {[%clk 0:00:22]}  h4 {[%clk 0:00:03]} 62. Kh7 {[%clk 0:00:21]} 1-0


[Site "https://www.chess.com"]

[Event "Titled Tuesday Blitz May 9 Early 2023"]
[White "Sharapov, Evgeny"]
[Black "Peng, Li Min"]
[WhiteFideId "14103133"]
[BlackFideId "14112620"]
[WhiteElo "2367"]
[BlackElo "2436"]
[Result "0-1"]
[Round "07"]
[TimeControl "180+2"]
[Date "2023.05.09"]
[WhiteClock "0:00:01"]
[BlackClock "0:00:10"]

1. c4 {[%clk 0:03:00]}  e6 {[%clk 0:03:00]} 2. Nc3 {[%clk 0:02:59]}  d5 {[%clk 0:03:01]} 3. cxd5 {[%clk 0:02:59]}  exd5 {[%clk 0:03:01]} 4. d4 {[%clk 0:03:00]}  c6 {[%clk 0:03:01]} 5. Nf3 {[%clk 0:03:00]}  Bf5 {[%clk 0:03:01]} 6. Bf4 {[%clk 0:02:58]}  Qb6 {[%clk 0:03:00]} 7. Qd2 {[%clk 0:02:57]}  Nf6 {[%clk 0:03:00]} 8. a3 {[%clk 0:02:57]}  Nbd7 {[%clk 0:02:59]} 9. e3 {[%clk 0:02:57]}  Nh5 {[%clk 0:02:55]} 10. Bg3 {[%clk 0:02:55]}  Nxg3 {[%clk 0:02:55]} 11. hxg3 {[%clk 0:02:55]}  h6 {[%clk 0:02:55]} 12. Be2 {[%clk 0:02:55]}  Be7 {[%clk 0:02:50]} 13. O-O {[%clk 0:02:55]}  Nf6 {[%clk 0:02:47]} 14. Ne5 {[%clk 0:02:52]}  O-O {[%clk 0:02:45]} 15. b4 {[%clk 0:02:51]}  a6 {[%clk 0:02:44]} 16. Rac1 {[%clk 0:02:50]}  Bd6 {[%clk 0:02:43]} 17. f4 {[%clk 0:02:46]}  Qc7 {[%clk 0:02:35]} 18. g4 {[%clk 0:02:44]}  Bh7 {[%clk 0:02:35]} 19. g5 {[%clk 0:02:43]}  hxg5 {[%clk 0:02:28]} 20. fxg5 {[%clk 0:02:43]}  Ne4 {[%clk 0:02:29]} 21. Nxe4 {[%clk 0:02:41]}  Bxe4 {[%clk 0:02:30]} 22. Nf3 {[%clk 0:02:21]}  Rae8 {[%clk 0:02:29]} 23. Bd3 {[%clk 0:02:13]}  Bg3 {[%clk 0:02:24]} 24. Bxe4 {[%clk 0:01:59]}  Rxe4 {[%clk 0:02:25]} 25. g6 {[%clk 0:01:47]}  f6 {[%clk 0:02:04]} 26. Qe2 {[%clk 0:01:43]}  Rfe8 {[%clk 0:01:58]} 27. Ne5 {[%clk 0:01:42]}  Rh4 {[%clk 0:01:35]} 28. Nf3 {[%clk 0:01:06]}  Rh6 {[%clk 0:01:34]} 29. Qd3 {[%clk 0:01:02]}  Bh2+ {[%clk 0:01:19]} 30. Nxh2 {[%clk 0:00:58]}  Qxh2+ {[%clk 0:01:20]} 31. Kf2 {[%clk 0:00:58]}  Rh3 {[%clk 0:01:21]} 32. Rce1 {[%clk 0:00:37]}  Qg3+ {[%clk 0:01:19]} 33. Kg1 {[%clk 0:00:37]}  Qh2+ {[%clk 0:01:18]} 34. Kf2 {[%clk 0:00:37]}  Re4 {[%clk 0:01:04]} 35. Rg1 {[%clk 0:00:20]}  Qg3+ {[%clk 0:00:43]} 36. Kf1 {[%clk 0:00:20]}  Rh5 {[%clk 0:00:44]} 37. Ke2 {[%clk 0:00:15]}  Qxg6 {[%clk 0:00:44]} 38. Ref1 {[%clk 0:00:14]}  Rg5 {[%clk 0:00:44]} 39. Rf2 {[%clk 0:00:14]}  Rg3 {[%clk 0:00:44]} 40. Rf3 {[%clk 0:00:13]}  Rxg2+ {[%clk 0:00:44]} 41. Rxg2 {[%clk 0:00:13]}  Qxg2+ {[%clk 0:00:45]} 42. Rf2 {[%clk 0:00:13]}  Qg4+ {[%clk 0:00:43]} 43. Kd2 {[%clk 0:00:13]}  Qg1 {[%clk 0:00:39]} 44. Re2 {[%clk 0:00:11]}  Qa1 {[%clk 0:00:39]} 45. Qb3 {[%clk 0:00:08]}  Qf1 {[%clk 0:00:28]} 46. a4 {[%clk 0:00:07]}  Qf5 {[%clk 0:00:27]} 47. b5 {[%clk 0:00:07]}  axb5 {[%clk 0:00:28]} 48. axb5 {[%clk 0:00:07]}  Qd7 {[%clk 0:00:28]} 49. bxc6 {[%clk 0:00:08]}  Qxc6 {[%clk 0:00:28]} 50. Kd3 {[%clk 0:00:07]}  Qa6+ {[%clk 0:00:24]} 51. Kd2 {[%clk 0:00:07]}  Qa5+ {[%clk 0:00:23]} 52. Kd3 {[%clk 0:00:04]}  Re7 {[%clk 0:00:16]} 53. Ra2 {[%clk 0:00:03]}  Qd8 {[%clk 0:00:15]} 54. Ra7 {[%clk 0:00:02]}  Qd7 {[%clk 0:00:08]} 55. Ra8+ {[%clk 0:00:02]}  Kf7 {[%clk 0:00:09]} 56. Qd1 {[%clk 0:00:02]}  Qb5+ {[%clk 0:00:08]} 57. Kd2 {[%clk 0:00:02]}  Qb2+ {[%clk 0:00:08]} 58. Kd3 {[%clk 0:00:02]}  Qb5+ {[%clk 0:00:09]} 59. Kd2 {[%clk 0:00:03]}  Qb4+ {[%clk 0:00:09]} 60. Kd3 {[%clk 0:00:03]}  Qc4+ {[%clk 0:00:09]} 61. Kd2 {[%clk 0:00:03]}  g6 {[%clk 0:00:08]} 62. Qg4 {[%clk 0:00:03]}  Qb4+ {[%clk 0:00:09]} 63. Kd3 {[%clk 0:00:03]}  Qb3+ {[%clk 0:00:09]} 64. Kd2 {[%clk 0:00:03]}  Qxe3+ {[%clk 0:00:10]} 65. Kc2 {[%clk 0:00:04]}  Qe2+ {[%clk 0:00:10]} 66. Kb3 {[%clk 0:00:01]}  Qxg4 {[%clk 0:00:10]} 0-1


[Site "https://www.chess.com"]

[Event "Titled Tuesday Blitz May 9 Early 2023"]
[White "Matinian, Nikita"]
[Black "Tang, Andrew"]
[WhiteFideId "24129100"]
[BlackFideId "2059630"]
[WhiteElo "2422"]
[BlackElo "2596"]
[Result "0-1"]
[Round "07"]
[TimeControl "180+2"]
[Date "2023.05.09"]
[WhiteClock "0:00:00"]
[BlackClock "0:01:05"]

1. e4 {[%clk 0:03:00]}  e5 {[%clk 0:02:56]} 2. Nf3 {[%clk 0:03:00]}  Nc6 {[%clk 0:02:54]} 3. Bb5 {[%clk 0:03:00]}  g6 {[%clk 0:02:54]} 4. c3 {[%clk 0:02:56]}  a6 {[%clk 0:02:54]} 5. Bxc6 {[%clk 0:02:55]}  dxc6 {[%clk 0:02:55]} 6. O-O {[%clk 0:02:50]}  Bg7 {[%clk 0:02:54]} 7. d4 {[%clk 0:02:50]}  exd4 {[%clk 0:02:55]} 8. cxd4 {[%clk 0:02:49]}  Ne7 {[%clk 0:02:56]} 9. h3 {[%clk 0:02:44]}  O-O {[%clk 0:02:56]} 10. Nc3 {[%clk 0:02:43]}  h6 {[%clk 0:02:55]} 11. Re1 {[%clk 0:02:41]}  Kh7 {[%clk 0:02:47]} 12. Bf4 {[%clk 0:02:40]}  g5 {[%clk 0:02:46]} 13. Bxg5 {[%clk 0:02:32]}  hxg5 {[%clk 0:02:41]} 14. Nxg5+ {[%clk 0:02:33]}  Kg6 {[%clk 0:02:40]} 15. Nf3 {[%clk 0:01:40]}  Bh6 {[%clk 0:02:23]} 16. Ne5+ {[%clk 0:01:38]}  Kg7 {[%clk 0:02:23]} 17. d5 {[%clk 0:01:02]}  cxd5 {[%clk 0:02:08]} 18. exd5 {[%clk 0:01:03]}  Ng6 {[%clk 0:02:08]} 19. Ng4 {[%clk 0:00:41]}  Bf4 {[%clk 0:02:03]} 20. Qd4+ {[%clk 0:00:39]}  f6 {[%clk 0:02:01]} 21. Rad1 {[%clk 0:00:35]}  Be5 {[%clk 0:01:54]} 22. Nxe5 {[%clk 0:00:31]}  fxe5 {[%clk 0:01:53]} 23. Rxe5 {[%clk 0:00:27]}  Nxe5 {[%clk 0:01:52]} 24. Qxe5+ {[%clk 0:00:28]}  Qf6 {[%clk 0:01:50]} 25. Qxc7+ {[%clk 0:00:28]}  Kh8 {[%clk 0:01:50]} 26. Ne4 {[%clk 0:00:27]}  Qg6 {[%clk 0:01:49]} 27. Qe5+ {[%clk 0:00:27]}  Kg8 {[%clk 0:01:47]} 28. Rd3 {[%clk 0:00:26]}  Bg4 {[%clk 0:01:19]} 29. Re3 {[%clk 0:00:06]}  Bf3 {[%clk 0:01:10]} 30. Ng3 {[%clk 0:00:04]}  Rae8 {[%clk 0:01:10]} 31. Qd4 {[%clk 0:00:03]}  Rxe3 {[%clk 0:01:10]} 32. Qxe3 {[%clk 0:00:03]}  Bxd5 {[%clk 0:01:10]} 33. Kh2 {[%clk 0:00:04]}  Bc6 {[%clk 0:01:08]} 34. f4 {[%clk 0:00:04]}  Qf6 {[%clk 0:01:09]} 35. Nh5 {[%clk 0:00:04]}  Qxb2 {[%clk 0:01:05]} 36. Qg3+ {[%clk 0:00:03]}  Kf7 {[%clk 0:01:05]} 37. Qg5 {[%clk 0:00:03]}  Be4 {[%clk 0:01:05]} 38. Qg7+ {[%clk 0:00:00]}  Qxg7 {[%clk 0:01:05]} 0-1


[Site "https://www.chess.com"]